[Event "2nd Cambridge Open 2024"]
[Site "Cambridge"]
[Date "2024.02.21"]
[Round "5.27"]
[White "Kovalskyi, Roman"]
[Black "Evans, Ruben"]
[Result "1/2-1/2"]
[ECO "C02"]
[WhiteElo "2009"]
[BlackElo "1647"]
[Annotator "RC"]
[PlyCount "173"]
[EventDate "2024.02.18"]
[EventType "swiss"]
[EventCountry "ENG"]
[SourceTitle "playchess.com"]
[Source "ChessBase"]
[SourceQuality "1"]
[TimeControl "5400+30"]

1. e4 {[%emt 0:07:20]} e6 {[%emt 0:00:01]} 2. d4 {[%emt 0:00:15]} d5 {[%emt 0:00:02]} 3. e5 {[%emt 0:00:07]} c5 {[%emt 0:00:04]} 4. c3 {[%emt 0:00:03]} Nc6 {[%emt 0:00:08]} 5. Nf3 {[%emt 0:00:17]} Nge7 {[%emt 0:00:08]} 6. Na3 {[%emt 0:00:06]} cxd4 {[%emt 0:00:29]} 7. cxd4 {[%emt 0:00:07]} Nf5 {[%emt 0:00:20]} 8. Nc2 {[%emt 0:00:05]} Qa5+ {[%emt 0:00:23]} 9. Bd2 {[%emt 0:00:40]} Qb6 {[%emt 0:00:05]} 10. Bc3 {[%emt 0:00:35]} a5 {[%emt 0:02:53]} 11. Bd3 {[%emt 0:01:58]} Be7 {[%emt 0:03:16]} 12. O-O {[%emt 0:01:31]} O-O {[%emt 0:02:15]} 13. Re1 {[%emt 0:01:55]} Bd7 {[%emt 0:04:23]} 14. Ne3 {[%emt 0:01:45]} Nxe3 {[%emt 0:04:26]} 15. Rxe3 {[%emt 0:00:06]} f5 {[%emt 0:04:07]} 16. exf6 {[%emt 0:01:47]} Bxf6 {[%emt 0:01:23]} 17. Ne5 {[%emt 0:02:51]} Bxe5 {[%emt 0:18:24]} 18. dxe5 {[%emt 0:00:11]} g6 {[%emt 0:03:31]} 19. Bd2 {[%emt 0:24:54]} Ne7 {[%emt 0:10:44]} 20. Re2 {[%emt 0:09:06]} Bc6 {[%emt 0:13:47]} 21. Bg5 {[%emt 0:01:46]} Rf7 {[%emt 0:07:20]} 22. Bf6 {[%emt 0:03:23]} d4 {[%emt 0:01:47]} 23. Qd2 {[%emt 0:03:50]} Bb5 {[%emt 0:07:41]} 24. Bxb5 {[%emt 0:03:11]} Qxb5 {[%emt 0:00:04]} 25. Re4 {[%emt 0:00:05]} d3 {[%emt 0:06:28]} 26. a4 {[%emt 0:10:45]} Qa6 {[%emt 0:00:18]} 27. Rd4 {[%emt 0:09:25]} Nd5 {[%emt 0:00:54]} 28. Bh4 {[%emt 0:00:08]} Rc8 {[%emt 0:05:22]} 29. Rxd3 {[%emt 0:01:41]} Qc4 {[%emt 0:02:14]} 30. Rd4 {[%emt 0:01:19]} Qc2 {[%emt 0:00:41]} 31. h3 {[%emt 0:10:06]} Qxd2 {[%emt 0:00:28]} 32. Rxd2 {[%emt 0:00:01]} Rf4 {[%emt 0:00:25]} 33. Bg3 {[%emt 0:02:10]} Rfc4 {[%emt 0:00:09]} 34. f3 {[%emt 0:01:18]} h6 {[%emt 0:01:11]} 35. Be1 {[%emt 0:01:03]} b6 {[%emt 0:00:40]} 36. b3 {[%emt 0:01:42]} Rc2 {[%emt 0:00:40]} 37. Ra2 {[%emt 0:00:48]} Rc1 {[%emt 0:00:05]} 38. Kf2 {[%emt 0:00:07]} Kf7 {[%emt 0:00:22]} 39. Rd4 {[%emt 0:01:01]} Rb1 {[%emt 0:00:54]} 40. Rc4 {[%emt 0:00:23]} Rxc4 {[%emt 0:00:35]} 41. bxc4 {[%emt 0:00:01]} Nb4 {[%emt 0:00:01]} 42. Rd2 {[%emt 0:01:00]} Ke7 {[%emt 0:00:12]} 43. Rd6 {[%emt 0:00:25]} Nc2 {[%emt 0:00:35]} 44. Bd2 {[%emt 0:00:08]} Na3 {[%emt 0:00:45]} 45. Bxh6 {[%emt 0:00:46]} Nxc4 {[%emt 0:01:10]} 46. Bg5+ {[%emt 0:00:03]} Kf7 {[%emt 0:00:09]} 47. Rd7+ {[%emt 0:00:04]} Kf8 {[%emt 0:00:22]} 48. Bf6 {[%emt 0:01:24]} Ra1 {[%emt 0:01:12]} 49. g4 {[%emt 0:00:32]} Rxa4 {[%emt 0:00:27]} 50. h4 {[%emt 0:00:07]} Ra2+ {[%emt 0:00:30]} 51. Kg3 {[%emt 0:00:12]} Rd2 {[%emt 0:00:25]} 52. Rc7 {[%emt 0:01:12]} b5 {[%emt 0:00:43]} 53. h5 {[%emt 0:00:39]} gxh5 {[%emt 0:00:17]} 54. gxh5 {[%emt 0:00:01]} Ne3 {[%emt 0:00:27]} 55. h6 {[%emt 0:00:51]} Nf5+ {[%emt 0:00:01]} 56. Kh3 {[%emt 0:00:04]} Nxh6 {[%emt 0:00:49]} 57. Bg7+ {[%emt 0:00:04]} Ke8 {[%emt 0:00:44]} 58. Bxh6 {[%emt 0:00:05]} Rd5 {[%emt 0:00:38]} 59. Bf4 {[%emt 0:01:57]} b4 {[%emt 0:00:32]} 60. Rb7 {[%emt 0:00:11]} Rd4 {[%emt 0:00:23]} 61. Be3 {[%emt 0:00:46]} Rd3 {[%emt 0:00:16]} 62. Bc5 {[%emt 0:00:29]} Rxf3+ {[%emt 0:00:11]} 63. Kg4 {[%emt 0:00:01]} Rc3 {[%emt 0:00:37]} 64. Bd6 {[%emt 0:00:12]} b3 {[%emt 0:00:45]} 65. Kf4 {[%emt 0:01:06]} a4 {[%emt 0:00:28]} 66. Rb4 {[%emt 0:00:47]} Kd7 {[%emt 0:01:02]} 67. Rxa4 {[%emt 0:00:31]} b2 {[%emt 0:00:03]} 68. Ra7+ {[%emt 0:00:17]} Kc6 {[%emt 0:00:23]} 69. Rc7+ {[%emt 0:00:43]} Kb6 {[%emt 0:00:14]} 70. Rxc3 {[%emt 0:00:25]} b1=Q {[%emt 0:02:02]} 71. Rc7 {[%emt 0:00:35]} Qf5+ {[%emt 0:00:00]} 72. Ke3 {[%emt 0:00:03]} Qh3+ {[%emt 0:00:00]} 73. Kd4 {[%emt 0:00:00]} Qf3 {[%emt 0:00:00]} 74. Rc3 {[%emt 0:01:08]} Qf2+ {[%emt 0:00:15]} 75. Kd3 {[%emt 0:00:18]} Qg3+ {[%emt 0:01:03]} 76. Kc4 {[%emt 0:00:27]} Qg4+ {[%emt 0:00:13]} 77. Kb3 {[%emt 0:01:00]} Qd1+ {[%emt 0:00:10]} 78. Kb2 {[%emt 0:00:06]} Qd4 {[%emt 0:00:53]} 79. Kc2 {[%emt 0:00:42]} Qa4+ {[%emt 0:00:26]} 80. Kb2 {[%emt 0:01:17]} Qd4 {[%emt 0:01:05]} 81. Kc2 {[%emt 0:00:00]} Qe4+ {[%emt 0:00:25]} 82. Kb2 {[%emt 0:00:00]} Kb5 {[%emt 0:01:30]} 83. Rc5+ {[%emt 0:00:48]} Ka4 {[%emt 0:00:00]} 84. Kc3 {[%emt 0:00:33]} Qe3+ {[%emt 0:00:08]} 85. Kc2 {[%emt 0:00:10]} Qb3+ {[%emt 0:00:36]} 86. Kd2 {[%emt 0:00:09]} Qb2+ {[%emt 0:00:20]} 87. Ke3 {[%emt 0:00:16]} 1/2-1/2

[Event "2nd Cambridge Open 2024"]
[Site "Cambridge"]
[Date "2024.02.21"]
[Round "5.28"]
[White "Jefremov, Aivar"]
[Black "Underwood, Jon"]
[Result "1/2-1/2"]
[ECO "A80"]
[WhiteElo "1656"]
[BlackElo "1993"]
[Annotator "NA RC"]
[PlyCount "58"]
[EventDate "2024.02.18"]
[EventType "swiss"]
[EventCountry "ENG"]
[SourceTitle "playchess.com"]
[Source "ChessBase"]
[SourceQuality "1"]
[TimeControl "5400+30"]

1. d4 {[%emt 0:00:30]} f5 {[%emt 0:00:05]} 2. Nc3 {[%emt 0:00:27]} Nf6 {[%emt 0:00:06]} 3. Bg5 {[%emt 0:00:09]} d5 {[%emt 0:00:05]} 4. Bxf6 {[%emt 0:00:39]} exf6 {[%emt 0:00:09]} 5. e3 {[%emt 0:00:12]} Be6 {[%emt 0:00:05]} 6. Bd3 {[%emt 0:00:22]} Nc6 {[%emt 0:00:07]} 7. Qf3 {[%emt 0:00:44]} Qd7 {[%emt 0:00:06]} 8. h3 {[%emt 0:01:04]} Nb4 {[%emt 0:01:34]} 9. Nge2 {[%emt 0:01:51]} c6 {[%emt 0:07:04]} 10. Nf4 {[%emt 0:02:57]} Nxd3+ {[%emt 0:00:09]} 11. Nxd3 {[%emt 0:05:00]} Bd6 {[%emt 0:00:19]} 12. Ne2 {[%emt 0:01:12]} O-O-O {[%emt 0:03:58]} 13. Nef4 {[%emt 0:01:23]} Bf7 {[%emt 0:00:25]} 14. g4 {[%emt 0:02:16]} fxg4 {[%emt 0:04:32]} 15. Qxg4 {[%emt 0:06:26]} Qxg4 {[%emt 0:03:09]} 16. hxg4 {[%emt 0:00:06]} Rde8 {[%emt 0:00:19]} 17. Kd2 {[%emt 0:01:36]} h6 {[%emt 0:03:15]} 18. Nh5 {[%emt 0:06:46]} Rhg8 {[%emt 0:00:50]} 19. b4 {[%emt 0:01:10]} b6 {[%emt 0:08:52]} 20. Nhf4 {[%emt 0:01:34]} Kb7 {[%emt 0:01:50]} 21. a4 {[%emt 0:00:58]} Ra8 {[%emt 0:02:21]} 22. a5 {[%emt 0:01:56]} Kc7 {[%emt 0:04:00]} 23. Ra3 {[%emt 0:04:10]} Rgc8 {[%emt 0:04:39]} 24. Rha1 {[%emt 0:02:06]} Kb7 {[%emt 0:04:54]} 25. c3 {[%emt 0:03:38]} Re8 {[%emt 0:03:31]} 26. Nh5 {[%emt 0:03:41]} Bf8 {[%emt 0:00:34]} 27. Ng3 {[%emt 0:05:05]} g6 {[%emt 0:02:45]} 28. Rh1 {[%emt 0:06:21]} Rac8 {[%emt 0:02:35]} 29. Rha1 {[%emt 0:00:47]} Ra8 {[%emt 0:00:12]} 1/2-1/2

[Event "2nd Cambridge Open 2024"]
[Site "Cambridge"]
[Date "2024.02.21"]
[Round "5.29"]
[White "Asgarova, Turan"]
[Black "Prince, Alan R"]
[Result "1-0"]
[ECO "B01"]
[WhiteElo "1988"]
[BlackElo "1652"]
[Annotator "RC"]
[PlyCount "47"]
[EventDate "2024.02.18"]
[EventType "swiss"]
[EventCountry "ENG"]
[SourceTitle "playchess.com"]
[Source "ChessBase"]
[SourceQuality "1"]
[TimeControl "5400+30"]

1. e4 {[%emt 0:00:03]} d5 {[%emt 0:00:08]} 2. exd5 {[%emt 0:00:11]} Qxd5 {[%emt 0:00:07]} 3. Nc3 {[%emt 0:00:14]} Qa5 {[%emt 0:00:07]} 4. d4 {[%emt 0:00:11]} Nf6 {[%emt 0:00:10]} 5. Nf3 {[%emt 0:01:15]} Bf5 {[%emt 0:00:16]} 6. Be2 {[%emt 0:01:05]} Nc6 {[%emt 0:07:08]} 7. O-O {[%emt 0:04:55]} O-O-O {[%emt 0:01:06]} 8. Nb5 {[%emt 0:13:57]} a6 {[%emt 0:06:03]} 9. Na3 {[%emt 0:01:19]} e6 {[%emt 0:13:41]} 10. Nc4 {[%emt 0:03:29]} Qd5 {[%emt 0:08:45]} 11. Ne3 {[%emt 0:03:44]} Qd7 {[%emt 0:02:08]} 12. Nxf5 {[%emt 0:00:40]} exf5 {[%emt 0:00:03]} 13. c3 {[%emt 0:00:13]} Nd5 {[%emt 0:03:45]} 14. c4 {[%emt 0:12:21]} Nb6 {[%emt 0:02:16]} 15. d5 {[%emt 0:00:28]} Nb8 {[%emt 0:01:51]} 16. Be3 {[%emt 0:03:23]} f6 {[%emt 0:02:44]} 17. a3 {[%emt 0:05:24]} g5 {[%emt 0:02:38]} 18. b4 {[%emt 0:02:07]} h5 {[%emt 0:08:12]} 19. Bxb6 {[%emt 0:01:47]} cxb6 {[%emt 0:00:34]} 20. Nd4 {[%emt 0:01:06]} Bd6 {[%emt 0:04:01]} 21. Bd3 {[%emt 0:03:33]} Qf7 {[%emt 0:04:06]} 22. Bxf5+ {[%emt 0:02:59]} Nd7 {[%emt 0:00:27]} 23. Ne6 {[%emt 0:02:01]} Rdg8 {[%emt 0:01:50]} 24. c5 {[%emt 0:01:07]} 1-0

[Event "2nd Cambridge Open 2024"]
[Site "Cambridge"]
[Date "2024.02.21"]
[Round "5.30"]
[White "Wynarczyk, Raymond"]
[Black "Volovich, Julia"]
[Result "1/2-1/2"]
[ECO "C13"]
[WhiteElo "1703"]
[BlackElo "1983"]
[Annotator "NA RC"]
[PlyCount "51"]
[EventDate "2024.02.18"]
[EventType "swiss"]
[EventCountry "ENG"]
[SourceTitle "playchess.com"]
[Source "ChessBase"]
[SourceQuality "1"]
[TimeControl "5400+30"]

1. e4 {[%emt 0:00:04]} e6 {[%emt 0:00:08]} 2. d4 {[%emt 0:00:07]} d5 {[%emt 0:00:06]} 3. Nc3 {[%emt 0:00:07]} Nf6 {[%emt 0:00:10]} 4. Bg5 {[%emt 0:00:09]} dxe4 {[%emt 0:00:25]} 5. Nxe4 {[%emt 0:00:27]} Be7 {[%emt 0:00:26]} 6. Bxf6 {[%emt 0:01:24]} Bxf6 {[%emt 0:00:10]} 7. Nf3 {[%emt 0:00:09]} O-O {[%emt 0:00:30]} 8. Qd2 {[%emt 0:03:16]} b6 {[%emt 0:07:39]} 9. Nxf6+ {[%emt 0:04:32]} Qxf6 {[%emt 0:00:12]} 10. Qg5 {[%emt 0:01:33]} Qxg5 {[%emt 0:03:05]} 11. Nxg5 {[%emt 0:00:10]} Bb7 {[%emt 0:00:18]} 12. Bd3 {[%emt 0:02:30]} h6 {[%emt 0:07:13]} 13. Be4 {[%emt 0:00:30]} Bd5 {[%emt 0:12:42]} 14. Bxd5 {[%emt 0:02:52]} exd5 {[%emt 0:00:04]} 15. Nf3 {[%emt 0:01:30]} c5 {[%emt 0:02:30]} 16. O-O-O {[%emt 0:03:24]} Rd8 {[%emt 0:10:04]} 17. Rhe1 {[%emt 0:09:07]} Nc6 {[%emt 0:05:57]} 18. c3 {[%emt 0:02:18]} Rac8 {[%emt 0:07:48]} 19. Ne5 {[%emt 0:03:24]} Kf8 {[%emt 0:02:39]} 20. Kb1 {[%emt 0:04:47]} Ne7 {[%emt 0:08:16]} 21. g4 {[%emt 0:05:13]} f6 {[%emt 0:02:37]} 22. Nf3 {[%emt 0:02:26]} Nc6 {[%emt 0:02:00]} 23. h4 {[%emt 0:01:55]} c4 {[%emt 0:06:18]} 24. g5 {[%emt 0:03:43]} Re8 {[%emt 0:02:21]} 25. gxf6 {[%emt 0:00:52]} gxf6 {[%emt 0:00:35]} 26. h5 {[%emt 0:01:52]} 1/2-1/2

[Event "2nd Cambridge Open 2024"]
[Site "Cambridge"]
[Date "2024.02.21"]
[Round "5.32"]
[White "Hutchinson, Norman A"]
[Black "Martin, Lewis"]
[Result "0-1"]
[ECO "B12"]
[WhiteElo "1962"]
[BlackElo "2144"]
[Annotator "RC"]
[PlyCount "106"]
[EventDate "2024.02.18"]
[EventType "swiss"]
[EventCountry "ENG"]
[SourceTitle "playchess.com"]
[Source "ChessBase"]
[SourceQuality "1"]
[TimeControl "5400+30"]

1. e4 {[%emt 0:00:03]} c6 {[%emt 0:00:20]} 2. d4 {[%emt 0:00:04]} d5 {[%emt 0:00:03]} 3. e5 {[%emt 0:00:05]} Bf5 {[%emt 0:00:05]} 4. h4 {[%emt 0:00:12]} h5 {[%emt 0:00:15]} 5. c4 {[%emt 0:00:06]} e6 {[%emt 0:00:12]} 6. Nc3 {[%emt 0:00:05]} Nd7 {[%emt 0:05:22]} 7. Nge2 {[%emt 0:01:07]} Ne7 {[%emt 0:01:10]} 8. Bg5 {[%emt 0:01:03]} Qc7 {[%emt 0:20:18]} 9. Ng3 {[%emt 0:00:48]} Bg6 {[%emt 0:03:10]} 10. Bd3 {[%emt 0:01:08]} Bxd3 {[%emt 0:04:33]} 11. Qxd3 {[%emt 0:00:08]} f6 {[%emt 0:02:43]} 12. exf6 {[%emt 0:00:30]} gxf6 {[%emt 0:00:05]} 13. Be3 {[%emt 0:00:16]} Nb6 {[%emt 0:05:23]} 14. cxd5 {[%emt 0:05:47]} Nexd5 {[%emt 0:02:02]} 15. O-O {[%emt 0:01:54]} O-O-O {[%emt 0:00:20]} 16. Rac1 {[%emt 0:04:13]} Kb8 {[%emt 0:01:05]} 17. Qe2 {[%emt 0:10:10]} Qf7 {[%emt 0:05:26]} 18. Qf3 {[%emt 0:03:56]} Be7 {[%emt 0:03:40]} 19. Rfe1 {[%emt 0:03:44]} Rdg8 {[%emt 0:10:32]} 20. Nge4 {[%emt 0:08:37]} Rg4 {[%emt 0:02:06]} 21. g3 {[%emt 0:02:16]} Qg6 {[%emt 0:01:52]} 22. Kf1 {[%emt 0:00:46]} Rf8 {[%emt 0:05:11]} 23. Nxd5 {[%emt 0:01:13]} Nxd5 {[%emt 0:00:30]} 24. Nc3 {[%emt 0:00:32]} Nb4 {[%emt 0:07:21]} 25. Bf4+ {[%emt 0:06:31]} e5 {[%emt 0:00:09]} 26. dxe5 {[%emt 0:00:18]} fxe5 {[%emt 0:00:07]} 27. Bxe5+ {[%emt 0:02:57]} Ka8 {[%emt 0:00:29]} 28. Qe3 {[%emt 0:04:37]} Nc2 {[%emt 0:01:56]} 29. Rxc2 {[%emt 0:01:13]} Qxc2 {[%emt 0:00:06]} 30. Bd4 {[%emt 0:00:24]} Bd8 {[%emt 0:01:01]} 31. Qe6 {[%emt 0:02:48]} Qf5 {[%emt 0:01:07]} 32. Qxf5 {[%emt 0:04:33]} Rxf5 {[%emt 0:00:04]} 33. Be5 {[%emt 0:00:35]} b5 {[%emt 0:02:08]} 34. Bd6 {[%emt 0:05:18]} Bb6 {[%emt 0:01:16]} 35. Re8+ {[%emt 0:01:16]} Kb7 {[%emt 0:00:03]} 36. Bf4 {[%emt 0:00:40]} Rgxf4 {[%emt 0:03:39]} 37. gxf4 {[%emt 0:00:18]} Rxf4 {[%emt 0:00:03]} 38. Ne4 {[%emt 0:01:08]} Rxh4 {[%emt 0:00:08]} 39. Re7+ {[%emt 0:02:21]} Kc8 {[%emt 0:04:59]} 40. Nd6+ {[%emt 0:01:01]} Kd8 {[%emt 0:00:12]} 41. Rf7 {[%emt 0:00:28]} Rd4 {[%emt 0:00:25]} 42. Nf5 {[%emt 0:01:45]} Rf4 {[%emt 0:00:20]} 43. Nd6 {[%emt 0:01:02]} Rxf7 {[%emt 0:00:28]} 44. Nxf7+ {[%emt 0:00:07]} Ke7 {[%emt 0:00:23]} 45. Ne5 {[%emt 0:00:18]} Kd6 {[%emt 0:00:34]} 46. Nd3 {[%emt 0:00:23]} c5 {[%emt 0:01:09]} 47. Nf4 {[%emt 0:00:18]} h4 {[%emt 0:00:11]} 48. Ng2 {[%emt 0:01:20]} Bd8 {[%emt 0:00:23]} 49. Nf4 {[%emt 0:00:47]} c4 {[%emt 0:00:24]} 50. Ke2 {[%emt 0:00:10]} a5 {[%emt 0:01:45]} 51. Nh3 {[%emt 0:00:10]} Bf6 {[%emt 0:00:32]} 52. b3 {[%emt 0:00:33]} cxb3 {[%emt 0:00:03]} 53. axb3 {[%emt 0:00:08]} a4 {[%emt 0:00:06]} 0-1

[Event "2nd Cambridge Open 2024"]
[Site "Cambridge"]
[Date "2024.02.21"]
[Round "5.33"]
[White "Myall, Ivan J"]
[Black "Banerjee, Supratit"]
[Result "1-0"]
[ECO "C02"]
[WhiteElo "1951"]
[BlackElo "1984"]
[Annotator "RC"]
[PlyCount "105"]
[EventDate "2024.02.18"]
[EventType "swiss"]
[EventCountry "ENG"]
[SourceTitle "playchess.com"]
[Source "ChessBase"]
[SourceQuality "1"]
[TimeControl "5400+30"]

1. e4 {[%emt 0:00:07]} e6 {[%emt 0:00:08]} 2. d4 {[%emt 0:00:08]} d5 {[%emt 0:00:02]} 3. e5 {[%emt 0:00:06]} c5 {[%emt 0:00:06]} 4. c3 {[%emt 0:00:11]} Nc6 {[%emt 0:00:05]} 5. Be3 {[%emt 0:00:11]} Qb6 {[%emt 0:01:49]} 6. Qd2 {[%emt 0:00:06]} cxd4 {[%emt 0:01:18]} 7. cxd4 {[%emt 0:00:05]} Nge7 {[%emt 0:00:30]} 8. Nf3 {[%emt 0:00:43]} Nf5 {[%emt 0:00:22]} 9. Bd3 {[%emt 0:01:23]} Nxe3 {[%emt 0:01:04]} 10. fxe3 {[%emt 0:00:04]} Be7 {[%emt 0:00:45]} 11. O-O {[%emt 0:00:24]} O-O {[%emt 0:00:55]} 12. Nc3 {[%emt 0:00:59]} Bd7 {[%emt 0:00:21]} 13. Kh1 {[%emt 0:04:16]} Nb4 {[%emt 0:05:31]} 14. Bb1 {[%emt 0:01:21]} Rac8 {[%emt 0:00:21]} 15. a3 {[%emt 0:03:14]} Nc6 {[%emt 0:00:46]} 16. e4 {[%emt 0:13:02]} dxe4 {[%emt 0:14:46]} 17. Nxe4 {[%emt 0:01:00]} f5 {[%emt 0:03:52]} 18. exf6 {[%emt 0:07:44]} Bxf6 {[%emt 0:01:06]} 19. Nxf6+ {[%emt 0:04:25]} Rxf6 {[%emt 0:00:10]} 20. Ba2 {[%emt 0:03:41]} Rcf8 {[%emt 0:05:43]} 21. Rad1 {[%emt 0:04:51]} Kh8 {[%emt 0:04:55]} 22. Rfe1 {[%emt 0:09:44]} Qc7 {[%emt 0:05:59]} 23. Ne5 {[%emt 0:10:32]} Rf2 {[%emt 0:13:41]} 24. Qc3 {[%emt 0:01:58]} Be8 {[%emt 0:03:19]} 25. Bxe6 {[%emt 0:04:24]} Qb6 {[%emt 0:07:34]} 26. Nxc6 {[%emt 0:07:07]} Bxc6 {[%emt 0:02:04]} 27. d5 {[%emt 0:00:08]} Ba4 {[%emt 0:00:12]} 28. Rc1 {[%emt 0:02:14]} Bc2 {[%emt 0:04:52]} 29. h3 {[%emt 0:05:23]} Qd6 {[%emt 0:07:16]} 30. Kg1 {[%emt 0:04:14]} Qb6 {[%emt 0:03:46]} 31. Kh2 {[%emt 0:00:55]} Bg6 {[%emt 0:02:21]} 32. b4 {[%emt 0:01:38]} Qd8 {[%emt 0:04:33]} 33. Qg3 {[%emt 0:02:06]} Qf6 {[%emt 0:01:50]} 34. Rc8 {[%emt 0:01:29]} Qd4 {[%emt 0:01:13]} 35. d6 {[%emt 0:01:50]} Qd2 {[%emt 0:03:23]} 36. Rxf8+ {[%emt 0:00:51]} Rxf8 {[%emt 0:00:15]} 37. d7 {[%emt 0:00:30]} h6 {[%emt 0:00:25]} 38. Re5 {[%emt 0:02:28]} Kh7 {[%emt 0:01:08]} 39. Rd5 {[%emt 0:00:22]} Qe2 {[%emt 0:00:22]} 40. Bg4 {[%emt 0:01:55]} Qe7 {[%emt 0:00:09]} 41. Qd6 {[%emt 0:01:07]} Qd8 {[%emt 0:00:46]} 42. Rc5 {[%emt 0:00:57]} Rf2 {[%emt 0:01:09]} 43. Rc8 {[%emt 0:00:51]} Be4 {[%emt 0:00:12]} 44. Bf5+ {[%emt 0:00:41]} Rxf5 {[%emt 0:00:12]} 45. Rxd8 {[%emt 0:00:06]} Rg5 {[%emt 0:00:04]} 46. Qd2 {[%emt 0:00:31]} Bc6 {[%emt 0:00:13]} 47. Rc8 {[%emt 0:00:32]} Bxd7 {[%emt 0:00:11]} 48. Qxd7 {[%emt 0:00:06]} a5 {[%emt 0:00:08]} 49. Qd3+ {[%emt 0:00:10]} Rg6 {[%emt 0:00:07]} 50. Rd8 {[%emt 0:00:13]} axb4 {[%emt 0:00:07]} 51. Rd6 {[%emt 0:00:09]} bxa3 {[%emt 0:00:03]} 52. Qxg6+ {[%emt 0:00:06]} Kg8 {[%emt 0:00:04]} 53. Rd8# {[%emt 0:00:09]} 1-0

[Event "2nd Cambridge Open 2024"]
[Site "Cambridge"]
[Date "2024.02.21"]
[Round "5.34"]
[White "Waller, Dan"]
[Black "Skettos, Nicolas"]
[Result "1/2-1/2"]
[ECO "C13"]
[WhiteElo "2126"]
[BlackElo "1880"]
[Annotator "RC"]
[PlyCount "130"]
[EventDate "2024.02.18"]
[EventType "swiss"]
[EventCountry "ENG"]
[SourceTitle "playchess.com"]
[Source "ChessBase"]
[SourceQuality "1"]
[TimeControl "5400+30"]

1. e4 {[%emt 0:00:04]} e6 {[%emt 0:00:07]} 2. d4 {[%emt 0:00:04]} d5 {[%emt 0:00:03]} 3. Nc3 {[%emt 0:00:07]} Nf6 {[%emt 0:00:28]} 4. Bg5 {[%emt 0:00:22]} dxe4 {[%emt 0:00:14]} 5. Nxe4 {[%emt 0:00:10]} Nbd7 {[%emt 0:00:09]} 6. Nf3 {[%emt 0:00:45]} h6 {[%emt 0:00:30]} 7. Bxf6 {[%emt 0:02:03]} Nxf6 {[%emt 0:00:07]} 8. Bd3 {[%emt 0:00:06]} Be7 {[%emt 0:01:32]} 9. O-O {[%emt 0:05:00]} O-O {[%emt 0:01:33]} 10. Qe2 {[%emt 0:04:52]} Nd5 {[%emt 0:01:28]} 11. Bc4 {[%emt 0:02:53]} b6 {[%emt 0:04:03]} 12. Rfe1 {[%emt 0:03:50]} Bb7 {[%emt 0:02:58]} 13. Rad1 {[%emt 0:01:00]} a6 {[%emt 0:02:56]} 14. Ne5 {[%emt 0:03:38]} Nf6 {[%emt 0:05:22]} 15. Ng3 {[%emt 0:03:01]} b5 {[%emt 0:03:34]} 16. Bd3 {[%emt 0:12:59]} Qd5 {[%emt 0:06:34]} 17. Ne4 {[%emt 0:08:37]} Qxa2 {[%emt 0:11:36]} 18. Nxf6+ {[%emt 0:09:20]} Bxf6 {[%emt 0:00:28]} 19. b3 {[%emt 0:00:05]} Rad8 {[%emt 0:03:31]} 20. Qg4 {[%emt 0:12:57]} Qb2 {[%emt 0:03:59]} 21. Re3 {[%emt 0:02:56]} Kh8 {[%emt 0:07:08]} 22. Qh5 {[%emt 0:00:07]} Bxe5 {[%emt 0:04:36]} 23. dxe5 {[%emt 0:00:36]} c5 {[%emt 0:01:03]} 24. Rg3 {[%emt 0:08:01]} c4 {[%emt 0:04:13]} 25. bxc4 {[%emt 0:02:12]} bxc4 {[%emt 0:00:07]} 26. Qg4 {[%emt 0:00:21]} Qxe5 {[%emt 0:01:50]} 27. Qxc4 {[%emt 0:00:09]} a5 {[%emt 0:03:04]} 28. h3 {[%emt 0:01:13]} Ra8 {[%emt 0:02:05]} 29. f4 {[%emt 0:01:38]} Qf6 {[%emt 0:02:56]} 30. Rb1 {[%emt 0:00:54]} Bd5 {[%emt 0:05:39]} 31. Qa4 {[%emt 0:00:10]} Qc3 {[%emt 0:02:06]} 32. Kh2 {[%emt 0:01:09]} Bc6 {[%emt 0:01:12]} 33. Bb5 {[%emt 0:00:21]} Bxb5 {[%emt 0:00:18]} 34. Rxb5 {[%emt 0:00:05]} Qf6 {[%emt 0:03:13]} 35. Rf3 {[%emt 0:01:26]} Qd8 {[%emt 0:01:06]} 36. Ra3 {[%emt 0:01:17]} Qc7 {[%emt 0:00:37]} 37. Qe4 {[%emt 0:02:59]} Rfc8 {[%emt 0:02:46]} 38. c3 {[%emt 0:00:26]} Qc6 {[%emt 0:01:28]} 39. Qxc6 {[%emt 0:01:17]} Rxc6 {[%emt 0:00:01]} 40. f5 {[%emt 0:00:28]} exf5 {[%emt 0:00:24]} 41. Rxf5 {[%emt 0:00:25]} Kg8 {[%emt 0:00:26]} 42. Rfxa5 {[%emt 0:00:31]} Rxa5 {[%emt 0:00:05]} 43. Rxa5 {[%emt 0:00:04]} Rxc3 {[%emt 0:00:02]} 44. Ra7 {[%emt 0:00:13]} h5 {[%emt 0:00:30]} 45. h4 {[%emt 0:00:22]} g6 {[%emt 0:00:08]} 46. g3 {[%emt 0:00:11]} Kg7 {[%emt 0:00:04]} 47. Rb7 {[%emt 0:00:07]} Rf3 {[%emt 0:01:45]} 48. Kg2 {[%emt 0:00:29]} Rf5 {[%emt 0:00:06]} 49. Ra7 {[%emt 0:00:17]} g5 {[%emt 0:00:17]} 50. hxg5 {[%emt 0:00:05]} Rxg5 {[%emt 0:00:02]} 51. Kf3 {[%emt 0:01:05]} Rb5 {[%emt 0:00:13]} 52. Ra6 {[%emt 0:00:50]} Rb4 {[%emt 0:02:00]} 53. Ra7 {[%emt 0:00:12]} h4 {[%emt 0:00:18]} 54. gxh4 {[%emt 0:00:05]} Rxh4 {[%emt 0:00:03]} 55. Kg3 {[%emt 0:00:08]} Rb4 {[%emt 0:00:04]} 56. Kf3 {[%emt 0:00:15]} Kg6 {[%emt 0:00:09]} 57. Ra5 {[%emt 0:00:18]} f6 {[%emt 0:00:10]} 58. Rc5 {[%emt 0:00:05]} Rb1 {[%emt 0:00:36]} 59. Kf2 {[%emt 0:00:26]} Rb3 {[%emt 0:00:09]} 60. Rc4 {[%emt 0:00:07]} Kg5 {[%emt 0:00:08]} 61. Ra4 {[%emt 0:00:10]} f5 {[%emt 0:00:10]} 62. Rc4 {[%emt 0:00:09]} Rb5 {[%emt 0:01:06]} 63. Ra4 {[%emt 0:00:11]} f4 {[%emt 0:00:43]} 64. Ra8 {[%emt 0:00:04]} Kg4 {[%emt 0:00:14]} 65. Rg8+ {[%emt 0:00:12]} Kf5 {[%emt 0:00:03]} 1/2-1/2